Workbook

Sheet Sheet1
C1: Spreadsheet to design an Analemmatic Dial
X2: ENTER LOCATION PARAMETERS
C3: This is an Excel program to lay out an ANALEMMATIC SUNDIAL for any latitude and allows for
C4: longitude correction away from the time zone meridian longitude. In many cases dials are made | Y4: Latitude | AA4: 44.395 | AB4: <=ENTER
C5: withouth longitude correction to show local solar time. To do this, make the time zone longitude | Y5: Dial Scale | AA5: 4 | AB5: <=ENTER
C6: the same as your sundial site longitude.
Y7: Longitude | AA7: 0 | AB7: <=ENTER
C8: Note: No need to enter "N" "S""E" or"W" or the word "feet" JUST ENTER THE NUMBERS | Y8: TimeZone | AA8: 0 | AB8: <=ENTER
C10: To Make the Analemmatic Sundial
C11: 1. Select the location for the center of your dial. Select the dial's size using the Dial Scale.
C12: Dial Scale is the distance from the center of the dial to the 6am or 6pm hour marks
C13: 2. Lay out a line true East-West and a perpendicular North-South line
C14: Where the two lines cross, this is the center of the dial.
C15: 2. On the E-W line, mark the focus East and focus West points away from the center
C16: The distance to the focus point is given in the Ellipse Axes and Focal Points Box
C17: 3. Along the N-S line, measure from center Northward and make the North Mark
C18: The North Mark and Dial Scale are given in the Ellipse Axes and Focal Points Box
C19: 4. The hour marks are made along an ellipse. Measurement is made either
C20: a. From the two focii or
C21: b. From the ellipse center and the North Mark
C22: (See the diagram at the bottom of the spreadsheet)
C24: 5. The walkway (or paverstones) must show marks for months throughout the year
C25: Use the Walkway Place to Stand Box to determine where to place the marks.
C26: Note: Measurements start at the North Mark and are measured South
C27: (January will be in the South)
C29: R.L. Kellogg
C30: 2013-03-09
C31: 2016-10-07
C32: 2019-09-21
K33: Ellipse Axes and Focal Points | U33: Walkway Place to Stand
L34: Ellipse | N34: feet | O34: inches | W34: Sun | AB34: Measure South From N-Mark
K35: x | L35: a | M35: =EWScale -> 4 | N35: =INT(M35) -> 4 | O35: =Toinches(M35) -> -- | U35: Month | W35: Day | X35: (deg) | Z35: feet | AA35: feet | AB35: inches | AD35: E /W
K36: y | L36: b | M36: =NoonMark -> 2.798403953 | N36: =INT(M36) -> 2 | O36: =Toinches(M36) -> 9 1/2 | U36: Walkway | W36: Btm | X36: =SunDec(W37)-5 -> -28.43927596 | Y36: =EWScale*COS(ToRad*$AA$4)*TAN(ToRad*X36) -> -1.547920763 | Z36: =$M$36-EWScale*COS(ToRad*$AA$4)*TAN(ToRad*X36) -> 4.346324716 | AA36: =IF(Z36>0,INT(Z36),INT(Z36)+1) -> 4 | AB36: =Toinches(Z36) -> 4 | AD36: =IF(AE36=0,"Both Sides",IF(AE36<0,"W-Side",IF(AE36>0,"E-Side"))) -> Both Sides | AE36: 0
K37: x | L37: Focus East | M37: =SQRT(M35*M35-M36*M36) -> 2.858134936 | N37: =INT(M37) -> 2 | O37: =Toinches(M37) -> 10 1/4 | U37: Solstice | W37: 356 | X37: =SunDec(W37) -> -23.43927596 | Y37: -1.239152251 | Z37: 4.037556205 | AA37: 4 | AB37: =Toinches(Z37) -> 1/4 | AD37: =IF(AE37=0,"Both Sides",IF(AE37<0,"W-Side",IF(AE37>0,"E-Side"))) -> Both Sides | AE37: 0
K38: x | L38: Focus West | M38: =-M37 -> -2.858134936 | N38: =-N37 -> -2 | O38: =O37 -> 10 1/4 | U38: Jan 1 | W38: 1 | X38: -23.03311198 | Y38: -1.215156145 | Z38: 4.013560098 | AA38: 4 | AB38: =Toinches(Z38) -> -- | AD38: E-Side | AE38: 0.25
K39: y | L39: North Mark | M39: =NoonMark -> 2.798403953 | N39: =INT(M39) -> 2 | O39: =Toinches(M39) -> 9 1/2 | U39: Feb 1 | W39: =W38+31 -> 32 | X39: -17.21591761 | Y39: -0.885610748 | Z39: 3.684014701 | AA39: 3 | AB39: 8 | AD39: E-Side | AE39: 0.25
K40: x | L40: Scale | M40: =NoonMark -> 2.798403953 | N40: =INT(EWScale) -> 4 | O40: =Toinches(EWScale) -> -- | U40: Mar 1 | W40: =W39+28 -> 60 | X40: -7.744602988 | Y40: -0.3887008867 | Z40: 3.18710484 | AA40: 3 | AB40: 2 | AD40: E-Side | AE40: 0.25
U41: Equinox | W41: =W40+19.825 -> 79.825 | X41: 0.002849381339 | Y41: 0.0001421381544 | Z41: 2.798261815 | AA41: 2 | AB41: 9 1/2 | AD41: E-Side | AE41: 0.25
K42: Bailey Sunrise/Sunset Points | U42: Apr 1 | W42: =W40+31 -> 91 | X42: 4.384415492 | Y42: 0.2191394957 | Z42: 2.579264458 | AA42: 2 | AB42: 6 3/4 | AD42: E-Side | AE42: 0.25
K43: On EW axis | N43: feet | O43: inches | U43: May 1 | W43: =W42+30 -> 121 | X43: 14.95935496 | Y43: 0.7636622588 | Z43: 2.034741695 | AA43: 2 | AB43: 1/4 | AD43: E-Side | AE43: 0.25
K44: E | L44: Bailey Point | M44: =Bailey_Point(EWScale,AA4,23.5) -> 1.847920191 | N44: =INT(Bailey(EWScale,AA4)) -> 2 | O44: =Toinches(Bailey(EWScale,AA4)-INT(Bailey(EWScale,AA4))) -> 1/2 | U44: Jun 1 | W44: =W43+31 -> 152 | X44: 22.00070995 | Y44: 1.154802668 | Z44: 1.643601286 | AA44: 1 | AB44: 7 1/2 | AD44: E-Side | AE44: 0.25
K45: W | L45: Bailey Point | M45: =-M44 -> -1.847920191 | N45: =-N44 -> -2 | O45: =O44 -> 1/2 | U45: Solstice | W45: 173 | X45: =SunDec(W45) -> 23.43862907 | Y45: 1.239113916 | Z45: 1.559290037 | AA45: =IF(Z45>0,INT(Z45),INT(Z45)+1) -> 1 | AB45: =Toinches(Z45) -> 6 1/2 | AD45: Both Sides | AE45: 0
U46: Jul 1 | W46: =W44+30 -> 182 | X46: 23.13409407 | Y46: 1.221108537 | Z46: 1.577295416 | AA46: 1 | AB46: 6 3/4 | AD46: W-Side | AE46: -0.25
U47: Aug 1 | W47: =W46+31 -> 213 | X47: 18.12224124 | Y47: 0.9354106564 | Z47: 1.862993297 | AA47: 1 | AB47: 10 1/4 | AD47: W-Side | AE47: -0.25
U48: Sep 1 | W48: =W47+31 -> 244 | X48: 8.43490111 | Y48: 0.4238317739 | Z48: 2.374572179 | AA48: 2 | AB48: 4 1/4 | AD48: W-Side | AE48: -0.25
U49: Equinox | W49: =W48+22.22 -> 266.22 | X49: 0.004794850966 | Y49: 0.0002391856994 | Z49: 2.798164768 | AA49: 2 | AB49: 9 1/2 | AD49: W-Side | AE49: -0.25
U50: Oct 1 | W50: =W48+30 -> 274 | X50: -3.024982591 | Y50: -0.1510381846 | Z50: 2.949442138 | AA50: 2 | AB50: 11 1/4 | AD50: W-Side | AE50: -0.25
U51: Nov 1 | W51: =W50+31 -> 305 | X51: -14.29982088 | Y51: -0.7285199442 | Z51: 3.526923898 | AA51: 3 | AB51: 6 1/4 | AD51: W-Side | AE51: -0.25
U52: Dec 1 | W52: =W51+30 -> 335 | X52: -21.73828622 | Y52: -1.139602937 | Z52: 3.93800689 | AA52: 3 | AB52: 11 1/4 | AD52: W-Side | AE52: -0.25
U53: Solstice | W53: 356 | X53: -23.43927596 | Y53: -1.239152251 | Z53: 4.037556205 | AA53: 4 | AB53: 1/4 | AD53: Both Sides | AE53: 0
U54: Walkway | W54: Top | X54: =SunDec(W44)+6 -> 28.00070995 | Y54: 1.519742731 | Z54: 1.278661223 | AA54: 1 | AB54: =Toinches(Z54) -> 3 1/4 | AD54: Both Sides | AE54: 0
B56: Standard Time | D56: Hour | E56: E-W | F56: N-S | H56: Distance | I56: Distance | J56: North | K56: Distance | N56: Distance | Q56: North | R56: Distance | S56: Distance | T56: Distance | W56: Distance | AA56: Standard Time
D57: Angle | E57: x | F57: y | H57: from foci - | I57: from foci + | J57: atan(x/y) | K57: use W focus (-) | N57: use E focus (+) | Q57: 4-parts | R57: from center | S57: from N-Mark | T57: use Center | W57: use N Mark
B58: Hour | C58: Minute | D58: Deg | E58: feet | F58: feet | H58: feet | I58: feet | J58: deg | K58: feet | L58: inches | N58: feet | O58: inches | Q58: deg | R58: feet | S58: feet | T58: feet | U58: inches | W58: feet | X58: inches | AA58: Hour | AB58: Minute
B59: 5 | C59: 0 | D59: =-15*(12-B$59)+0.25*C59+Delta -> -105 | E59: =EWScale*SIN(ToRad*D59) -> -3.863703305 | F59: =NSScale*COS(ToRad*D59) -> -0.724280239 | H59: =SQRT((E59-FocusWest)*(E59-FocusWest)+F59*F59) -> 1.23925365 | I59: =SQRT((E59-FocusEast)*(E59-FocusEast)+F59*F59) -> 6.76074635 | J59: =ToDeg*ATAN2(F59,E59) -> -100.617304 | Q59: =ToDeg*ACOS((NorthMark*NorthMark+R59*R59-S59*S59)/(2*NorthMark*R59)) -> 100.617304 | R59: =SQRT(E59*E59+F59*F59) -> 3.931003065 | S59: =SQRT((E59*E59)+(NorthMark-F59)*(NorthMark-F59)) -> 5.228528201 | T59: =INT(R59) -> 3 | U59: =Toinches(R59) -> 11 | W59: =INT(S59) -> 5 | X59: =Toinches(S59) -> 2 1/2 | AA59: 5 | AB59: 0
B60: 5 | C60: 30 | D60: =-15*(12-B$59)+0.25*C60+Delta -> -97.5 | E60: -3.965779445 | F60: -0.3652650123 | H60: 1.166316804 | I60: 6.833683196 | J60: =ToDeg*ATAN2(F60,E60) -> -95.26233599 | Q60: 95.26233599 | R60: =SQRT(E60*E60+F60*F60) -> 3.982565146 | S60: 5.073086628 | T60: 3 | U60: 11 3/4 | W60: 5 | X60: 3/4 | AA60: 5 | AB60: 30
B62: 6 | C62: 0 | D62: =-15*(12-B$62)+0.25*C62+Delta -> -90 | E62: -4 | F62: 1.71423014e-16 | H62: 1.141865064 | I62: 6.858134936 | J62: -90 | Q62: 90 | R62: 4 | S62: 4.881707149 | T62: 4 | U62: -- | W62: 4 | X62: 10 1/2 | AA62: 6 | AB62: 0
B63: 6 | C63: 30 | D63: =-15*(12-B$62)+0.25*C63+Delta -> -82.5 | E63: -3.965779445 | F63: 0.3652650123 | H63: 1.166316804 | I63: 6.833683196 | J63: -84.73766401 | O63: Use Center and Noon Mark ==> | Q63: 84.73766401 | R63: 3.982565146 | S63: 4.652695102 | T63: 3 | U63: 11 3/4 | W63: 4 | X63: 7 3/4 | AA63: 6 | AB63: 30
B65: 7 | C65: 0 | D65: =-15*(12-B$65)+0.25*C65+Delta -> -75 | E65: -3.863703305 | F65: 0.724280239 | H65: 1.23925365 | I65: 6.76074635 | J65: -79.38269601 | Q65: 79.38269601 | R65: 3.931003065 | S65: 4.385224329 | T65: 3 | U65: 11 | W65: 4 | X65: 4 1/2 | AA65: 7 | AB65: 0
B66: 7 | C66: 30 | D66: =-15*(12-B$65)+0.25*C66+Delta -> -67.5 | E66: -3.69551813 | F66: 1.07090283 | H66: 1.359427631 | I66: 6.640572369 | J66: -73.83924596 | Q66: 73.83924596 | R66: 3.847555993 | S66: 4.079352201 | T66: 3 | U66: 10 | W66: 4 | X66: 3/4 | AA66: 7 | AB66: 30
B68: 8 | C68: 0 | D68: =-15*(12-B$68)+0.25*C68+Delta -> -60 | E68: -3.464101615 | F68: 1.399201977 | H68: 1.524782538 | I68: 6.475217462 | J68: -68.00548761 | Q68: 68.00548761 | R68: 3.736009391 | S68: 3.736009391 | T68: 3 | U68: 8 3/4 | W68: 3 | X68: 8 3/4 | AA68: 8 | AB68: 0
B69: 8 | C69: 30 | D69: =-15*(12-B$68)+0.25*C69+Delta -> -52.5 | E69: -3.173413361 | F69: 1.70356039 | H69: 1.732489101 | I69: 6.267510899 | J69: -61.77208607 | Q69: 61.77208607 | R69: 3.601759343 | S69: 3.356968095 | T69: 3 | U69: 7 | W69: 3 | X69: 4 1/4 | AA69: 8 | AB69: 30
B71: 9 | C71: 0 | D71: =-15*(12-B$71)+0.25*C71+Delta -> -45 | E71: -2.828427125 | F71: 1.978770412 | H71: 1.978993405 | I71: 6.021006595 | J71: -55.02332609 | K71: =INT(H71) -> 1 | L71: =Toinches(H71) -> 11 1/2 | N71: =INT(I71) -> 6 | O71: =Toinches(I71) -> 1/4 | Q71: 55.02332609 | R71: 3.451888229 | S71: 2.944791867 | T71: 3 | U71: 5 1/4 | W71: 2 | X71: 11 1/4 | AA71: 9 | AB71: 0
B72: 9 | C72: 30 | D72: =-15*(12-B$71)+0.25*C72+Delta -> -37.5 | E72: -2.435045716 | F72: 2.220123124 | H72: 2.260077692 | I72: 5.739922308 | J72: -47.64338839 | K72: 2 | L72: 3 | N72: 5 | O72: 8 3/4 | Q72: 47.64338839 | R72: 3.295207782 | S72: 2.502769737 | AA72: 9 | AB72: 30
B74: 10 | C74: 0 | D74: =-15*(12-B$74)+0.25*C74+Delta -> -30 | E74: -2 | F74: 2.423488914 | H74: 2.570932532 | I74: 5.429067468 | J74: -39.53137505 | K74: 2 | L74: 6 3/4 | N74: 5 | O74: 5 | Q74: 39.53137505 | R74: 3.142180535 | S74: 2.034836919 | AA74: 10 | AB74: 0
B75: 10 | C75: 30 | D75: =-15*(12-B$74)+0.25*C75+Delta -> -22.5 | E75: -1.530733729 | F75: 2.585388136 | H75: 2.906239112 | I75: 5.093760888 | J75: -30.62855133 | K75: 2 | L75: 10 3/4 | N75: 5 | O75: 1 | Q75: 30.62855133 | R75: 3.004559463 | S75: 1.545484225 | AA75: 10 | AB75: 30
B77: 11 | C77: 0 | D77: =-15*(12-B$77)+0.25*C77+Delta -> -15 | E77: -1.03527618 | F77: 2.703050651 | H77: 3.260260245 | I77: 4.739739755 | J77: -20.95698368 | K77: 3 | L77: 3 | N77: 4 | O77: 8 3/4 | Q77: 20.95698368 | R77: 2.894525797 | S77: 1.039658127 | AA77: 11 | AB77: 0
B78: 11 | C78: 30 | D78: =-15*(12-B$77)+0.25*C78+Delta -> -7.5 | E78: -0.5221047689 | F78: 2.77446322 | H78: 3.62693853 | I78: 4.37306147 | J78: -10.65741382 | K78: 3 | L78: 7 1/2 | N78: 4 | O78: 4 1/4 | Q78: 10.65741382 | R78: 2.823161268 | S78: 0.5226533731 | AA78: 11 | AB78: 30
B80: 12 | C80: 0 | D80: =15*(12-B$80)+0.25*C80+Delta -> 0 | E80: 0 | F80: 2.798403953 | H80: 4 | I80: 4 | J80: 0 | K80: 4 | L80: -- | N80: 4 | O80: -- | Q80: 0 | R80: 2.798403953 | S80: 0 | T80: <== Measure from Two Foci | AA80: 12 | AB80: 0
B81: 12 | C81: 30 | D81: =15*(12-B$80)+0.25*C81+Delta -> 7.5 | E81: 0.5221047689 | F81: 2.77446322 | H81: 4.37306147 | I81: 3.62693853 | J81: 10.65741382 | K81: 4 | L81: 4 1/4 | N81: 3 | O81: 7 1/2 | Q81: 10.65741382 | R81: 2.823161268 | S81: 0.5226533731 | AA81: 12 | AB81: 30
B83: 1 | C83: 0 | D83: =15*B$83+0.25*C83+Delta -> 15 | E83: 1.03527618 | F83: 2.703050651 | H83: 4.739739755 | I83: 3.260260245 | J83: 20.95698368 | K83: 4 | L83: 8 3/4 | N83: 3 | O83: 3 | Q83: 20.95698368 | R83: 2.894525797 | S83: 1.039658127 | AA83: 1 | AB83: 0
B84: 1 | C84: 30 | D84: =15*B$83+0.25*C84+Delta -> 22.5 | E84: 1.530733729 | F84: 2.585388136 | H84: 5.093760888 | I84: 2.906239112 | J84: 30.62855133 | K84: 5 | L84: 1 | N84: 2 | O84: 10 3/4 | Q84: 30.62855133 | R84: 3.004559463 | S84: 1.545484225 | AA84: 1 | AB84: 30
B86: 2 | C86: 0 | D86: =15*B$86+0.25*C86+Delta -> 30 | E86: 2 | F86: 2.423488914 | H86: 5.429067468 | I86: 2.570932532 | J86: 39.53137505 | K86: 5 | L86: 5 | N86: 2 | O86: 6 3/4 | Q86: 39.53137505 | R86: 3.142180535 | S86: 2.034836919 | AA86: 2 | AB86: 0
B87: 2 | C87: 30 | D87: =15*B$86+0.25*C87+Delta -> 37.5 | E87: 2.435045716 | F87: 2.220123124 | H87: 5.739922308 | I87: 2.260077692 | J87: 47.64338839 | K87: 5 | L87: 8 3/4 | N87: 2 | O87: 3 | Q87: 47.64338839 | R87: 3.295207782 | S87: 2.502769737 | AA87: 2 | AB87: 30
B89: 3 | C89: 0 | D89: =15*B$89+0.25*C89+Delta -> 45 | E89: 2.828427125 | F89: 1.978770412 | H89: 6.021006595 | I89: 1.978993405 | J89: 55.02332609 | K89: 6 | L89: 1/4 | N89: 1 | O89: 11 1/2 | Q89: 55.02332609 | R89: 3.451888229 | S89: 2.944791867 | T89: =INT(R89) -> 3 | U89: =Toinches(R89) -> 5 1/4 | W89: =INT(S89) -> 2 | X89: =Toinches(S89) -> 11 1/4 | AA89: 3 | AB89: 0
B90: 3 | C90: 30 | D90: =15*B$89+0.25*C90+Delta -> 52.5 | E90: 3.173413361 | F90: 1.70356039 | H90: 6.267510899 | I90: 1.732489101 | J90: 61.77208607 | Q90: 61.77208607 | R90: 3.601759343 | S90: 3.356968095 | T90: 3 | U90: 7 | W90: 3 | X90: 4 1/4 | AA90: 3 | AB90: 30
B92: 4 | C92: 0 | D92: =15*B$92+0.25*C92+Delta -> 60 | E92: 3.464101615 | F92: 1.399201977 | H92: 6.475217462 | I92: 1.524782538 | J92: 68.00548761 | Q92: 68.00548761 | R92: 3.736009391 | S92: 3.736009391 | T92: 3 | U92: 8 3/4 | W92: 3 | X92: 8 3/4 | AA92: 4 | AB92: 0
B93: 4 | C93: 30 | D93: =15*B$92+0.25*C93+Delta -> 67.5 | E93: 3.69551813 | F93: 1.07090283 | H93: 6.640572369 | I93: 1.359427631 | J93: 73.83924596 | Q93: 73.83924596 | R93: 3.847555993 | S93: 4.079352201 | T93: 3 | U93: 10 | W93: 4 | X93: 3/4 | AA93: 4 | AB93: 30
B95: 5 | C95: 0 | D95: =15*B$95+0.25*C95+Delta -> 75 | E95: 3.863703305 | F95: 0.724280239 | H95: 6.76074635 | I95: 1.23925365 | J95: 79.38269601 | Q95: 79.38269601 | R95: 3.931003065 | S95: 4.385224329 | T95: 3 | U95: 11 | W95: 4 | X95: 4 1/2 | AA95: 5 | AB95: 0
B96: 5 | C96: 30 | D96: =15*B$95+0.25*C96+Delta -> 82.5 | E96: 3.965779445 | F96: 0.3652650123 | H96: 6.833683196 | I96: 1.166316804 | J96: 84.73766401 | O96: Use Center and Noon Mark ==> | Q96: 84.73766401 | R96: 3.982565146 | S96: 4.652695102 | T96: 3 | U96: 11 3/4 | W96: 4 | X96: 7 3/4 | AA96: 5 | AB96: 30
B98: 6 | C98: 0 | D98: =15*B$98+0.25*C98+Delta -> 90 | E98: 4 | F98: 1.71423014e-16 | H98: 6.858134936 | I98: 1.141865064 | J98: 90 | Q98: 90 | R98: 4 | S98: 4.881707149 | T98: 4 | U98: -- | W98: 4 | X98: 10 1/2 | AA98: 6 | AB98: 0
B99: 6 | C99: 30 | D99: =15*B$98+0.25*C99+Delta -> 97.5 | E99: 3.965779445 | F99: -0.3652650123 | H99: 6.833683196 | I99: 1.166316804 | J99: 95.26233599 | Q99: 95.26233599 | R99: 3.982565146 | S99: 5.073086628 | T99: 3 | U99: 11 3/4 | W99: 5 | X99: 3/4 | AA99: 6 | AB99: 30
B101: 7 | C101: 0 | D101: =15*B$101+0.25*C101+Delta -> 105 | E101: 3.863703305 | F101: -0.724280239 | H101: 6.76074635 | I101: 1.23925365 | J101: 100.617304 | Q101: 100.617304 | R101: 3.931003065 | S101: 5.228528201 | T101: 3 | U101: 11 | W101: 5 | X101: 2 1/2 | AA101: 7 | AB101: 0
R115: Month | S115: Day of Mo.
R116: Jan | S116: 1
R117: Jan | S117: 15
R118: Feb | S118: 1
R119: Feb | S119: 15
R120: Mar | S120: 1
R121: Mar | S121: 15
R122: Equinox | S122: 22
R123: Apr | S123: 1
R124: Apr | S124: 15
R125: May | S125: 1
R126: May | S126: 15
R127: Jun | S127: 1
R128: Jun | S128: 15
R129: Solstice | S129: 21
R130: Jul | S130: 1
R131: Jul | S131: 15
R132: Aug | S132: 1
R133: Aug | S133: 15
R134: Sep | S134: 1
R135: Sep | S135: 15
R136: Equinox | S136: 21
R137: Oct | S137: 1
R138: Oct | S138: 15
R139: Nov | S139: 1
R140: Nov | S140: 15
R141: Dec | S141: 1
R142: Dec | S142: 15
R143: Solstice | S143: 21
W154: Example Lines
W155: x | X155: y
W156: =M38 -> -2.858134936 | X156: 0
W157: =E74 -> -2 | X157: =F74 -> 2.423488914
W158: =M37 -> 2.858134936 | X158: 0
W160: Example Lines
W161: x | X161: y
W162: 0 | X162: 0
W163: =E65 -> -3.863703305 | X163: =F65 -> 0.724280239
W164: 0 | X164: =NSScale -> 2.798403953
